[Event "*** Titled Tuesday 3|2 Blitz"]
[Site "Chess.com"]
[Date "2016.01.05"]
[Round "1"]
[White "wilju"]
[Black "grandmastergauri"]
[Result "1-0"]
[WhiteElo "1825"]
[BlackElo "2252"]
[TimeControl "180+2"]
[EndTime "11:09:43 PST"]
[Termination "wilju won by resignation"]

1. e4 {[%clk 0:02:53.6]} 1... c6 {[%clk 0:02:46.1]} 2. d4 {[%clk 0:02:52.8]}
2... d5 {[%clk 0:02:46.1]} 3. Nd2 {[%clk 0:02:52.3]} 3... dxe4 {[%clk
0:02:47.2]} 4. Nxe4 {[%clk 0:02:52.5]} 4... Bf5 {[%clk 0:02:48.9]} 5. Ng3 {[%clk
0:02:52.9]} 5... Bg6 {[%clk 0:02:50]} 6. Nf3 {[%clk 0:02:54.1]} 6... Nd7 {[%clk
0:02:50.2]} 7. h4 {[%clk 0:02:54.8]} 7... h6 {[%clk 0:02:51.5]} 8. h5 {[%clk
0:02:55.1]} 8... Bh7 {[%clk 0:02:53.1]} 9. Bc4 {[%clk 0:02:56]} 9... e6 {[%clk
0:02:51.8]} 10. O-O {[%clk 0:02:55.6]} 10... Ngf6 {[%clk 0:02:52.6]} 11. Re1
{[%clk 0:02:56.3]} 11... Be7 {[%clk 0:02:46.1]} 12. Bb3 {[%clk 0:02:56.7]} 12...
O-O {[%clk 0:02:46.1]} 13. c3 {[%clk 0:02:56.4]} 13... Qc7 {[%clk 0:02:42.2]}
14. Qe2 {[%clk 0:02:56.3]} 14... Nd5 {[%clk 0:02:29.8]} 15. Bd2 {[%clk
0:02:46.5]} 15... a5 {[%clk 0:01:59.7]} 16. a4 {[%clk 0:02:44]} 16... Qb6 {[%clk
0:01:58.7]} 17. Qd1 {[%clk 0:02:41.6]} 17... Bd6 {[%clk 0:01:48.3]} 18. Ne4
{[%clk 0:02:40.2]} 18... Bc7 {[%clk 0:01:49.6]} 19. c4 {[%clk 0:02:39.1]} 19...
Nf4 {[%clk 0:01:48.8]} 20. c5 {[%clk 0:02:35.9]} 20... Qa6 {[%clk 0:01:48.4]}
21. Rc1 {[%clk 0:02:29.9]} 21... Nxh5 {[%clk 0:01:44.5]} 22. Bc4 {[%clk
0:02:29.4]} 22... Qa7 {[%clk 0:01:45.6]} 23. Ne5 {[%clk 0:02:23]} 23... Nhf6
{[%clk 0:01:42.5]} 24. Nxd7 {[%clk 0:02:13.1]} 24... Nxd7 {[%clk 0:01:44.4]} 25.
Qf3 {[%clk 0:02:10.7]} 25... Rad8 {[%clk 0:01:22.1]} 26. Bc3 {[%clk 0:02:09.4]}
26... Bxe4 {[%clk 0:01:12.9]} 27. Rxe4 {[%clk 0:02:09]} 27... Nf6 {[%clk
0:01:14.8]} 28. Re2 {[%clk 0:02:06.5]} 28... Nd5 {[%clk 0:01:15.4]} 29. Rce1
{[%clk 0:02:05.1]} 29... Qb8 {[%clk 0:01:12.4]} 30. Qg4 {[%clk 0:02:03.8]} 30...
Bf4 {[%clk 0:01:11.2]} 31. Re4 {[%clk 0:02:02.2]} 31... Bg5 {[%clk 0:01:06.4]}
32. R4e2 {[%clk 0:01:58.7]} 32... Qc7 {[%clk 0:01:05.5]} 33. Rf1 {[%clk
0:01:54.7]} 33... b6 {[%clk 0:01:05.4]} 34. f4 {[%clk 0:01:54.8]} 34... Bf6
{[%clk 0:01:05.6]} 35. f5 {[%clk 0:01:54.4]} 35... Nxc3 {[%clk 0:00:46.3]} 36.
bxc3 {[%clk 0:01:53]} 36... bxc5 {[%clk 0:00:44.3]} 37. fxe6 {[%clk 0:01:51.9]}
37... fxe6 {[%clk 0:00:28.2]} 38. Rxe6 {[%clk 0:01:49.5]} 38... Kh8 {[%clk
0:00:27.2]} 39. Bd3 {[%clk 0:01:34.9]} 39... c4 {[%clk 0:00:16.2]} 40. Be4
{[%clk 0:01:33.2]} 40... Bg5 {[%clk 0:00:17]} 41. Rxf8+ {[%clk 0:01:23.6]} 41...
Rxf8 {[%clk 0:00:16.5]} 42. g3 {[%clk 0:01:20.2]} 42... Qb8 {[%clk 0:00:16.4]}
43. Bc2 {[%clk 0:01:16.3]} 43... Qb2 {[%clk 0:00:17]} 44. Qe4 {[%clk 0:01:15.4]}
44... Qc1+ {[%clk 0:00:18.1]} 45. Kh2 {[%clk 0:01:10]} 45... Rf2+ {[%clk
0:00:08.1]} 46. Kh3 {[%clk 0:01:09]} 46... Qf1+ {[%clk 0:00:06.2]} 47. Kg4
{[%clk 0:01:08.8]} 47... Kg8 {[%clk 0:00:03.8]} 48. Qh7+ {[%clk 0:01:00.5]}
48... Kf7 {[%clk 0:00:04.7]} 49. Qg6+ {[%clk 0:00:59.3]} 49... Kg8 {[%clk
0:00:06.4]} 50. Re8+ {[%clk 0:00:58.7]} 50... Rf8 {[%clk 0:00:08]} 51. Qh7+
{[%clk 0:00:59]} 51... Kf7 {[%clk 0:00:09.5]} 52. Bg6+ {[%clk 0:00:58.5]} 52...
Kf6 {[%clk 0:00:03.2]} 53. Rxf8+ {[%clk 0:00:58.4]} 1-0

[Event "*** Titled Tuesday 3|2 Blitz"]
[Site "Chess.com"]
[Date "2016.01.05"]
[Round "1"]
[White "Krutoy123"]
[Black "MapleDanish"]
[Result "0-1"]
[WhiteElo "2341"]
[BlackElo "2079"]
[TimeControl "180+2"]
[EndTime "11:09:52 PST"]
[Termination "MapleDanish won by resignation"]

1. e4 {[%clk 0:02:07.1]} 1... e5 {[%clk 0:03:00.3]} 2. Nf3 {[%clk 0:02:07]} 2...
Nc6 {[%clk 0:03:01.4]} 3. Bb5 {[%clk 0:02:08.1]} 3... Nf6 {[%clk 0:03:01.1]} 4.
O-O {[%clk 0:02:08.7]} 4... Nxe4 {[%clk 0:03:02.7]} 5. d4 {[%clk 0:02:08.9]}
5... Nd6 {[%clk 0:03:04.4]} 6. Bxc6 {[%clk 0:02:09.9]} 6... dxc6 {[%clk
0:03:06.3]} 7. dxe5 {[%clk 0:02:11.4]} 7... Nf5 {[%clk 0:03:08]} 8. Qxd8+ {[%clk
0:02:13]} 8... Kxd8 {[%clk 0:03:09.8]} 9. h3 {[%clk 0:02:14.7]} 9... Ke8 {[%clk
0:03:11.2]} 10. Nc3 {[%clk 0:02:13.6]} 10... Be7 {[%clk 0:03:12.6]} 11. Re1
{[%clk 0:02:14.5]} 11... Nh4 {[%clk 0:03:07.3]} 12. Nh2 {[%clk 0:02:13.8]} 12...
Be6 {[%clk 0:03:00.3]} 13. Be3 {[%clk 0:02:13.7]} 13... b6 {[%clk 0:02:59.3]}
14. g4 {[%clk 0:02:14.4]} 14... Bb4 {[%clk 0:02:54.4]} 15. a3 {[%clk 0:02:13.6]}
15... Bxc3 {[%clk 0:02:55.5]} 16. bxc3 {[%clk 0:02:15.5]} 16... Bd5 {[%clk
0:02:54.8]} 17. f4 {[%clk 0:02:04.6]} 17... h5 {[%clk 0:02:50.2]} 18. g5 {[%clk
0:01:38.8]} 18... Be6 {[%clk 0:02:51.2]} 19. Kf2 {[%clk 0:01:39.1]} 19... Rd8
{[%clk 0:02:32.4]} 20. Nf1 {[%clk 0:01:37.8]} 20... Bxh3 {[%clk 0:02:30.9]} 21.
Ng3 {[%clk 0:01:35.6]} 21... Nf5 {[%clk 0:02:28.4]} 22. Ne2 {[%clk 0:01:27.8]}
22... Bg4 {[%clk 0:02:27.1]} 23. Nc1 {[%clk 0:01:23.2]} 23... Ke7 {[%clk
0:02:13]} 24. Nd3 {[%clk 0:01:23.8]} 24... c5 {[%clk 0:02:11.6]} 25. a4 {[%clk
0:01:21.3]} 25... a5 {[%clk 0:02:11.7]} 26. Rg1 {[%clk 0:01:16]} 26... Nxe3
{[%clk 0:02:05.8]} 27. Kxe3 {[%clk 0:01:16.2]} 27... Bf5 {[%clk 0:02:05.6]} 28.
Ne1 {[%clk 0:01:14.3]} 28... Rd7 {[%clk 0:02:02.4]} 29. Rh1 {[%clk 0:01:12.1]}
29... g6 {[%clk 0:01:59.6]} 30. Rc1 {[%clk 0:01:03.3]} 30... Rhd8 {[%clk
0:02:00.1]} 31. Nf3 {[%clk 0:01:04.2]} 31... Bg4 {[%clk 0:01:56.4]} 32. Nh2
{[%clk 0:01:04.9]} 32... Be6 {[%clk 0:01:47.6]} 33. Rhf1 {[%clk 0:00:58.4]}
33... Bh3 {[%clk 0:01:29.3]} 34. Rf3 {[%clk 0:00:58.4]} 34... Bf5 {[%clk
0:01:30.8]} 35. Rff1 {[%clk 0:00:58.8]} 35... Rd2 {[%clk 0:01:29.2]} 36. Nf3
{[%clk 0:00:45.3]} 36... Rxc2 {[%clk 0:01:25.3]} 37. Rxc2 {[%clk 0:00:47.2]}
37... Bxc2 {[%clk 0:01:25.9]} 38. Nh4 {[%clk 0:00:47.9]} 38... Rd3+ {[%clk
0:01:20.3]} 39. Ke2 {[%clk 0:00:47]} 39... Rh3 {[%clk 0:01:21]} 40. Nf3 {[%clk
0:00:47.1]} 40... Bxa4 {[%clk 0:01:20.8]} 41. c4 {[%clk 0:00:44.5]} 41... Bd7
{[%clk 0:01:18.1]} 42. Kf2 {[%clk 0:00:39.6]} 42... Bg4 {[%clk 0:01:16.9]} 43.
Nd2 {[%clk 0:00:39.8]} 43... Rh2+ {[%clk 0:01:16.5]} 44. Ke3 {[%clk 0:00:40]}
44... Re2+ {[%clk 0:01:17.3]} 45. Kd3 {[%clk 0:00:40.8]} 45... Rg2 {[%clk
0:01:12.6]} 46. Ke3 {[%clk 0:00:40.7]} 46... h4 {[%clk 0:01:11.5]} 47. Ne4
{[%clk 0:00:36.2]} 47... h3 {[%clk 0:00:59.2]} 48. Nf6 {[%clk 0:00:31.8]} 48...
Be6 {[%clk 0:01:00.4]} 49. f5 {[%clk 0:00:27.6]} 49... Bxf5 {[%clk 0:00:59.8]}
50. Nd5+ {[%clk 0:00:28.7]} 50... Kd7 {[%clk 0:00:56]} 51. Rd1 {[%clk 0:00:29]}
51... Kc8 {[%clk 0:00:52.2]} 52. Ne7+ {[%clk 0:00:25.8]} 52... Kb7 {[%clk
0:00:53.6]} 53. Nxf5 {[%clk 0:00:24.3]} 53... gxf5 {[%clk 0:00:55.5]} 54. Kf4
{[%clk 0:00:26.2]} 54... h2 {[%clk 0:00:56.4]} 55. Rh1 {[%clk 0:00:26.8]} 55...
a4 {[%clk 0:00:57.7]} 56. Kf3 {[%clk 0:00:23.8]} 56... Rxg5 {[%clk 0:00:49.6]}
57. Rxh2 {[%clk 0:00:24.1]} 57... Rg4 {[%clk 0:00:51.2]} 58. Rh5 {[%clk
0:00:20.1]} 58... a3 {[%clk 0:00:49.6]} 59. Rxf5 {[%clk 0:00:21.1]} 59... Rg1
{[%clk 0:00:47.2]} 60. Kf2 {[%clk 0:00:19.3]} 60... Rb1 {[%clk 0:00:42.5]} 0-1

[Event "*** Titled Tuesday 3|2 Blitz"]
[Site "Chess.com"]
[Date "2016.01.05"]
[Round "1"]
[White "Matibar"]
[Black "Jahonas"]
[Result "1-0"]
[WhiteElo "2411"]
[BlackElo "2103"]
[TimeControl "180+2"]
[EndTime "11:10:07 PST"]
[Termination "Matibar won by resignation"]

1. g3 {[%clk 0:02:56.4]} 1... d5 {[%clk 0:03:00]} 2. Bg2 {[%clk 0:02:57]} 2...
Nf6 {[%clk 0:03:00.8]} 3. f4 {[%clk 0:02:57.9]} 3... Nc6 {[%clk 0:03:00.8]} 4.
Nf3 {[%clk 0:02:58.7]} 4... Bg4 {[%clk 0:03:00.7]} 5. d4 {[%clk 0:02:54.1]} 5...
Bxf3 {[%clk 0:02:59.6]} 6. Bxf3 {[%clk 0:02:54.1]} 6... e6 {[%clk 0:03:00.7]} 7.
Be3 {[%clk 0:02:50.1]} 7... h5 {[%clk 0:02:52.9]} 8. Nd2 {[%clk 0:02:47]} 8...
Ng4 {[%clk 0:02:49.9]} 9. Bg1 {[%clk 0:02:45.8]} 9... f5 {[%clk 0:02:47.5]} 10.
h4 {[%clk 0:02:31.4]} 10... g6 {[%clk 0:02:41.6]} 11. c3 {[%clk 0:02:30.9]}
11... Bg7 {[%clk 0:02:38.5]} 12. Qb3 {[%clk 0:02:30.3]} 12... Rb8 {[%clk
0:02:32.5]} 13. O-O-O {[%clk 0:02:29.2]} 13... O-O {[%clk 0:02:31.7]} 14. Kb1
{[%clk 0:02:29.1]} 14... b5 {[%clk 0:02:27.5]} 15. Qc2 {[%clk 0:02:27.9]} 15...
Na5 {[%clk 0:02:20.6]} 16. Nb3 {[%clk 0:02:24.3]} 16... Nxb3 {[%clk 0:02:18.7]}
17. axb3 {[%clk 0:02:26.2]} 17... a5 {[%clk 0:02:18.2]} 18. e3 {[%clk
0:02:23.6]} 18... c6 {[%clk 0:02:18.1]} 19. Bf2 {[%clk 0:02:24.1]} 19... Qb6
{[%clk 0:02:07.6]} 20. Rhe1 {[%clk 0:02:24.1]} 20... a4 {[%clk 0:02:06.4]} 21.
Bg1 {[%clk 0:02:19.4]} 21... axb3 {[%clk 0:02:06.4]} 22. Qxb3 {[%clk 0:02:21.3]}
22... Ra8 {[%clk 0:01:55.6]} 23. Kc2 {[%clk 0:02:00.2]} 23... Ra4 {[%clk
0:01:55.3]} 24. Ra1 {[%clk 0:02:01.6]} 24... Rfa8 {[%clk 0:01:55.9]} 25. Rxa4
{[%clk 0:02:01.5]} 25... Rxa4 {[%clk 0:01:56]} 26. Kd2 {[%clk 0:02:02.3]} 26...
Qa5 {[%clk 0:01:52.2]} 27. Rb1 {[%clk 0:01:59.1]} 27... Bf8 {[%clk 0:01:45.1]}
28. Ke2 {[%clk 0:01:59.6]} 28... Nf6 {[%clk 0:01:32.4]} 29. Bf2 {[%clk
0:02:00.3]} 29... Ra1 {[%clk 0:01:27.4]} 30. Qd1 {[%clk 0:01:59.4]} 30... Rxb1
{[%clk 0:01:24.2]} 31. Qxb1 {[%clk 0:02:01.3]} 31... b4 {[%clk 0:01:23.2]} 32.
Qc2 {[%clk 0:01:57.8]} 32... bxc3 {[%clk 0:01:12.1]} 33. bxc3 {[%clk 0:01:58.4]}
33... c5 {[%clk 0:01:11.5]} 34. Be1 {[%clk 0:01:54.3]} 34... Qb5+ {[%clk
0:01:05.9]} 35. Kf2 {[%clk 0:01:47]} 35... c4 {[%clk 0:01:04.5]} 36. Bd1 {[%clk
0:01:39.2]} 36... Ne4+ {[%clk 0:00:58.1]} 37. Kf3 {[%clk 0:01:39.3]} 37... Be7
{[%clk 0:00:45.8]} 38. Qa2 {[%clk 0:01:39.5]} 38... Kf7 {[%clk 0:00:42.7]} 39.
Ke2 {[%clk 0:01:37.9]} 39... Qb8 {[%clk 0:00:38]} 40. Bc2 {[%clk 0:01:37.8]}
40... Nf6 {[%clk 0:00:36.6]} 41. Bd2 {[%clk 0:01:36.2]} 41... Ng4 {[%clk
0:00:36.4]} 42. Bc1 {[%clk 0:01:34]} 42... Qd6 {[%clk 0:00:34.4]} 43. Qa8 {[%clk
0:01:33.5]} 43... Qd8 {[%clk 0:00:34.7]} 44. Qa7 {[%clk 0:01:32.4]} 44... Nf6
{[%clk 0:00:34.2]} 45. Ba3 {[%clk 0:01:31.3]} 45... Kf8 {[%clk 0:00:34.5]} 46.
Bc5 {[%clk 0:01:13.9]} 46... Nd7 {[%clk 0:00:32.6]} 47. Ba4 {[%clk 0:01:06.3]}
47... Nxc5 {[%clk 0:00:29.5]} 48. dxc5 {[%clk 0:01:07.2]} 48... d4 {[%clk
0:00:26.5]} 49. cxd4 {[%clk 0:01:01.9]} 49... Qd5 {[%clk 0:00:26.9]} 50. Qb8+
{[%clk 0:01:02.8]} 50... Kg7 {[%clk 0:00:17]} 51. Qe5+ {[%clk 0:01:03]} 51...
Qxe5 {[%clk 0:00:17.6]} 52. fxe5 {[%clk 0:01:03.1]} 52... g5 {[%clk 0:00:16.9]}
53. c6 {[%clk 0:00:56.4]} 53... Bd8 {[%clk 0:00:16.2]} 54. hxg5 {[%clk
0:00:57.2]} 54... Kg6 {[%clk 0:00:16.9]} 55. d5 {[%clk 0:00:43.8]} 55... exd5
{[%clk 0:00:17.5]} 56. e6 {[%clk 0:00:45]} 56... Ba5 {[%clk 0:00:05.3]} 57. c7
{[%clk 0:00:41.4]} 57... Bxc7 {[%clk 0:00:05.7]} 58. e7 {[%clk 0:00:42.6]} 58...
Kf7 {[%clk 0:00:05.9]} 59. e8=Q+ {[%clk 0:00:43.6]} 1-0

[Event "*** Titled Tuesday 3|2 Blitz"]
[Site "Chess.com"]
[Date "2016.01.05"]
[Round "1"]
[White "BjarkeSahl"]
[Black "aspired"]
[Result "1/2-1/2"]
[WhiteElo "2119"]
[BlackElo "2397"]
[TimeControl "180+2"]
[EndTime "11:10:09 PST"]
[Termination "Game drawn by agreement"]

1. e4 {[%clk 0:03:00.1]} 1... e5 {[%clk 0:02:59.7]} 2. Nf3 {[%clk 0:03:00.5]}
2... Nc6 {[%clk 0:03:00.7]} 3. Bc4 {[%clk 0:03:02]} 3... Bc5 {[%clk 0:03:00.4]}
4. c3 {[%clk 0:02:54.9]} 4... Nf6 {[%clk 0:03:00.6]} 5. d4 {[%clk 0:02:49.6]}
5... exd4 {[%clk 0:03:01]} 6. cxd4 {[%clk 0:02:51.1]} 6... Bb4+ {[%clk
0:03:01.7]} 7. Nc3 {[%clk 0:02:52.4]} 7... Nxe4 {[%clk 0:02:58.5]} 8. O-O {[%clk
0:02:52.1]} 8... Nxc3 {[%clk 0:02:48.1]} 9. bxc3 {[%clk 0:02:51.7]} 9... Be7
{[%clk 0:02:43.2]} 10. d5 {[%clk 0:02:32.6]} 10... Na5 {[%clk 0:02:42.8]} 11. d6
{[%clk 0:02:25]} 11... cxd6 {[%clk 0:02:36.1]} 12. Bd5 {[%clk 0:02:17.5]} 12...
O-O {[%clk 0:02:34.9]} 13. Bf4 {[%clk 0:02:16.6]} 13... Rb8 {[%clk 0:02:29.4]}
14. Re1 {[%clk 0:02:07.4]} 14... Nc6 {[%clk 0:02:09.3]} 15. Rxe7 {[%clk
0:01:53.5]} 15... Nxe7 {[%clk 0:01:58.9]} 16. Bxd6 {[%clk 0:01:54.4]} 16... Ra8
{[%clk 0:01:58.1]} 17. Be4 {[%clk 0:01:48.4]} 17... Ng6 {[%clk 0:01:26.6]} 18.
Bxf8 {[%clk 0:01:39]} 18... Qxf8 {[%clk 0:01:28.5]} 19. h4 {[%clk 0:01:39.2]}
19... Qe7 {[%clk 0:01:25.7]} 20. Qd4 {[%clk 0:01:32.2]} 20... d6 {[%clk
0:01:21.3]} 21. Re1 {[%clk 0:01:31.8]} 21... Be6 {[%clk 0:01:20.7]} 22. h5
{[%clk 0:01:28.3]} 22... Nf8 {[%clk 0:01:06.3]} 23. Qd3 {[%clk 0:01:19.1]} 23...
h6 {[%clk 0:01:01.8]} 24. Nd4 {[%clk 0:01:19.7]} 24... Rd8 {[%clk 0:00:58.3]}
25. Bd5 {[%clk 0:01:12.6]} 25... Qf6 {[%clk 0:00:51]} 26. Bxb7 {[%clk
0:01:04.3]} 26... Bxa2 {[%clk 0:00:48.3]} 27. c4 {[%clk 0:00:57]} 27... Rb8
{[%clk 0:00:45.7]} 28. Bd5 {[%clk 0:00:55.5]} 28... Rb2 {[%clk 0:00:45.8]} 29.
Qe3 {[%clk 0:00:52.8]} 29... a5 {[%clk 0:00:39.2]} 30. Nc6 {[%clk 0:00:49.3]}
30... a4 {[%clk 0:00:36]} 31. Ne7+ {[%clk 0:00:24]} 31... Kh8 {[%clk 0:00:36.2]}
32. g4 {[%clk 0:00:25.5]} 32... Rb1 {[%clk 0:00:27.9]} 33. Nf5 {[%clk
0:00:25.9]} 33... Rxe1+ {[%clk 0:00:25.6]} 34. Qxe1 {[%clk 0:00:27]} 34... Kg8
{[%clk 0:00:14.5]} 35. Qe8 {[%clk 0:00:26.8]} 35... g6 {[%clk 0:00:15.6]} 36.
Nxh6+ {[%clk 0:00:22.3]} 36... Kg7 {[%clk 0:00:15.2]} 37. Nxf7 {[%clk
0:00:23.2]} 37... gxh5 {[%clk 0:00:14.5]} 38. g5 {[%clk 0:00:23.7]} 38... Qf4
{[%clk 0:00:14.4]} 39. Qe7 {[%clk 0:00:23.5]} 39... Ng6 {[%clk 0:00:14.3]} 40.
Qf6+ {[%clk 0:00:22]} 40... Qxf6 {[%clk 0:00:14.6]} 41. gxf6+ {[%clk 0:00:23.5]}
41... Kxf6 {[%clk 0:00:15.6]} 42. Nxd6 {[%clk 0:00:25.4]} 42... Nf4 {[%clk
0:00:13.8]} 43. Bf3 {[%clk 0:00:24.9]} 43... Bb1 {[%clk 0:00:12.7]} 44. Nb5
{[%clk 0:00:26]} 44... Ke5 {[%clk 0:00:13.4]} 45. c5 {[%clk 0:00:24.6]} 45... h4
{[%clk 0:00:13.6]} 46. c6 {[%clk 0:00:25.3]} 46... Ne6 {[%clk 0:00:14.4]} 47. c7
{[%clk 0:00:25.5]} 47... Nxc7 {[%clk 0:00:15.4]} 48. Nxc7 {[%clk 0:00:26.6]}
48... a3 {[%clk 0:00:16.2]} 49. Bd5 {[%clk 0:00:26.5]} 49... Kd6 {[%clk
0:00:16]} 50. Nb5+ {[%clk 0:00:27.1]} 50... Kxd5 {[%clk 0:00:17.4]} 51. Nxa3
{[%clk 0:00:29]} 51... Bf5 {[%clk 0:00:17.5]} 52. Nb5 {[%clk 0:00:28.2]} 52...
Bd7 {[%clk 0:00:17]} 53. Nc3+ {[%clk 0:00:29]} 53... Kd4 {[%clk 0:00:18.2]} 54.
Nd1 {[%clk 0:00:30.1]} 54... Ke4 {[%clk 0:00:19.3]} 55. Kh2 {[%clk 0:00:28.5]}
55... Kf3 {[%clk 0:00:20.2]} 56. Ne3 {[%clk 0:00:29.6]} 56... Kxf2 {[%clk
0:00:21.3]} 57. Nd5 {[%clk 0:00:31.2]} 57... Kf3 {[%clk 0:00:21.4]} 58. Nf6
{[%clk 0:00:31.3]} 58... Be6 {[%clk 0:00:22.5]} 59. Ne8 {[%clk 0:00:30.5]} 59...
Kg4 {[%clk 0:00:23.2]} 60. Nc7 {[%clk 0:00:31.4]} 60... Bc4 {[%clk 0:00:24.2]}
61. Ne8 {[%clk 0:00:31.8]} 61... Kg5 {[%clk 0:00:23.9]} 62. Nd6 {[%clk
0:00:31.1]} 62... Bd5 {[%clk 0:00:24.5]} 63. Nb5 {[%clk 0:00:31.3]} 63... Kf4
{[%clk 0:00:25.2]} 64. Nc3 {[%clk 0:00:29.9]} 64... Be6 {[%clk 0:00:25.8]} 65.
Ne2+ {[%clk 0:00:30.7]} 65... Kf3 {[%clk 0:00:26.5]} 66. Nd4+ {[%clk 0:00:31.7]}
66... Ke4 {[%clk 0:00:26.7]} 67. Nxe6 {[%clk 0:00:31.7]} 1/2-1/2

[Event "*** Titled Tuesday 3|2 Blitz"]
[Site "Chess.com"]
[Date "2016.01.05"]
[Round "1"]
[White "Tesla37"]
[Black "GargleBlaster"]
[Result "1-0"]
[WhiteElo "2528"]
[BlackElo "2198"]
[TimeControl "180+2"]
[EndTime "11:10:51 PST"]
[Termination "Tesla37 won on time"]

1. e4 {[%clk 0:03:01.6]} 1... e5 {[%clk 0:03:00.6]} 2. Nf3 {[%clk 0:03:01.8]}
2... Nc6 {[%clk 0:03:01.7]} 3. Bb5 {[%clk 0:03:03.4]} 3... f5 {[%clk 0:03:02.2]}
4. Nc3 {[%clk 0:03:01.9]} 4... fxe4 {[%clk 0:03:03.3]} 5. Nxe4 {[%clk
0:03:02.8]} 5... Nf6 {[%clk 0:03:04.9]} 6. Nxf6+ {[%clk 0:03:03.4]} 6... Qxf6
{[%clk 0:03:05.6]} 7. O-O {[%clk 0:03:04.2]} 7... Nd4 {[%clk 0:03:05.8]} 8. Nxd4
{[%clk 0:03:04]} 8... exd4 {[%clk 0:03:07.1]} 9. Bc4 {[%clk 0:02:58.4]} 9... c6
{[%clk 0:03:07.6]} 10. d3 {[%clk 0:02:44.2]} 10... d5 {[%clk 0:03:02.1]} 11. Bb3
{[%clk 0:02:41.9]} 11... Be7 {[%clk 0:02:59.2]} 12. Qh5+ {[%clk 0:02:40.7]}
12... Qf7 {[%clk 0:02:43.6]} 13. Qe5 {[%clk 0:02:37.6]} 13... Qf6 {[%clk
0:02:34.4]} 14. Bf4 {[%clk 0:02:35.3]} 14... O-O {[%clk 0:02:17]} 15. Qxf6
{[%clk 0:02:27.1]} 15... Bxf6 {[%clk 0:02:17]} 16. Rae1 {[%clk 0:02:23.9]} 16...
Bd7 {[%clk 0:02:10]} 17. Be5 {[%clk 0:02:23.4]} 17... Rae8 {[%clk 0:01:55.5]}
18. Bxf6 {[%clk 0:02:07.9]} 18... gxf6 {[%clk 0:01:55.2]} 19. h3 {[%clk
0:02:01.6]} 19... Kf7 {[%clk 0:01:41.6]} 20. Kh2 {[%clk 0:02:01.4]} 20... Re5
{[%clk 0:01:33.8]} 21. f4 {[%clk 0:01:54.3]} 21... Re3 {[%clk 0:01:12.3]} 22.
Rxe3 {[%clk 0:01:53.8]} 22... dxe3 {[%clk 0:01:13.3]} 23. Re1 {[%clk 0:01:49.5]}
23... Re8 {[%clk 0:01:14.1]} 24. Kg3 {[%clk 0:01:50.5]} 24... Kg6 {[%clk
0:01:07.8]} 25. Kf3 {[%clk 0:01:50.3]} 25... d4 {[%clk 0:01:08]} 26. c3 {[%clk
0:01:48.4]} 26... c5 {[%clk 0:01:09.2]} 27. Bd5 {[%clk 0:01:48.6]} 27... Bb5
{[%clk 0:00:45.8]} 28. Ke2 {[%clk 0:01:39.2]} 28... Re7 {[%clk 0:00:39.8]} 29.
cxd4 {[%clk 0:01:36.5]} 29... cxd4 {[%clk 0:00:40.3]} 30. Rc1 {[%clk 0:01:38]}
30... h5 {[%clk 0:00:31.3]} 31. Rc5 {[%clk 0:01:34.2]} 31... Ba6 {[%clk
0:00:27.8]} 32. Bf3 {[%clk 0:01:28.7]} 32... h4 {[%clk 0:00:23.2]} 33. b4 {[%clk
0:01:08.7]} 33... b6 {[%clk 0:00:15.8]} 34. Rd5 {[%clk 0:01:09.6]} 34... Rc7
{[%clk 0:00:16.7]} 35. Rxd4 {[%clk 0:01:10.1]} 35... Rc2+ {[%clk 0:00:17.9]} 36.
Kxe3 {[%clk 0:01:11.2]} 36... Rxa2 {[%clk 0:00:19]} 37. Rd7 {[%clk 0:01:10.2]}
37... Bb5 {[%clk 0:00:17.6]} 38. Rc7 {[%clk 0:01:03.2]} 38... a5 {[%clk
0:00:16]} 39. bxa5 {[%clk 0:01:02.9]} 39... bxa5 {[%clk 0:00:17.3]} 40. f5+
{[%clk 0:00:57.7]} 40... Kh6 {[%clk 0:00:14.5]} 41. Rf7 {[%clk 0:00:52.3]} 41...
Kg5 {[%clk 0:00:12]} 42. Be4 {[%clk 0:00:49.5]} 42... a4 {[%clk 0:00:09.4]} 43.
Rg7+ {[%clk 0:00:50.4]} 43... Kh6 {[%clk 0:00:10.8]} 44. Rg6+ {[%clk 0:00:50.7]}
44... Kh7 {[%clk 0:00:12.2]} 45. Rxf6 {[%clk 0:00:50.4]} 45... a3 {[%clk
0:00:13.8]} 46. Rf7+ {[%clk 0:00:51.3]} 46... Kg8 {[%clk 0:00:14.5]} 47. Ra7
{[%clk 0:00:51.5]} 47... Ra1 {[%clk 0:00:12.6]} 48. f6 {[%clk 0:00:50.3]} 48...
Be8 {[%clk 0:00:05.1]} 49. Bd5+ {[%clk 0:00:49.8]} 49... Kf8 {[%clk 0:00:05.6]}
50. f7 {[%clk 0:00:49.6]} 50... Bxf7 {[%clk 0:00:03.1]} 51. Rxf7+ {[%clk
0:00:49.5]} 51... Ke8 {[%clk 0:00:03.8]} 52. Ra7 {[%clk 0:00:51]} 52... Re1+
{[%clk 0:00:03.8]} 53. Kd2 {[%clk 0:00:50.7]} 53... Re5 {[%clk 0:00:05.3]} 54.
Bc6+ {[%clk 0:00:50.3]} 54... Kd8 {[%clk 0:00:05.9]} 55. Rxa3 {[%clk 0:00:51.8]}
55... Rg5 {[%clk 0:00:06.6]} 56. Bf3 {[%clk 0:00:53.2]} 56... Kc7 {[%clk
0:00:06.9]} 57. Ra4 {[%clk 0:00:54.2]} 57... Rb5 {[%clk 0:00:05.5]} 58. Rxh4
{[%clk 0:00:54.9]} 58... Rb2+ {[%clk 0:00:06.9]} 59. Ke3 {[%clk 0:00:56.1]}
59... Rb8 {[%clk 0:00:08.7]} 60. Rh7+ {[%clk 0:00:56.7]} 60... Kd6 {[%clk
0:00:09]} 61. g4 {[%clk 0:00:56.8]} 61... Re8+ {[%clk 0:00:10.6]} 62. Kf2 {[%clk
0:00:57.7]} 62... Rf8 {[%clk 0:00:12.5]} 63. Kg3 {[%clk 0:00:58.5]} 63... Ke5
{[%clk 0:00:14.4]} 64. h4 {[%clk 0:00:57.9]} 64... Kd4 {[%clk 0:00:15.9]} 65.
Rd7+ {[%clk 0:00:58.6]} 65... Ke3 {[%clk 0:00:16.9]} 66. Re7+ {[%clk 0:00:59.1]}
66... Kd4 {[%clk 0:00:17.7]} 67. h5 {[%clk 0:01:00.2]} 67... Kc5 {[%clk
0:00:11.9]} 68. h6 {[%clk 0:01:00.8]} 68... Kd6 {[%clk 0:00:13.8]} 69. Rg7
{[%clk 0:01:01.3]} 69... Rh8 {[%clk 0:00:13.7]} 70. g5 {[%clk 0:01:01.7]} 70...
Ke6 {[%clk 0:00:15.6]} 71. Be4 {[%clk 0:01:02.3]} 71... Ke5 {[%clk 0:00:16.5]}
72. h7 {[%clk 0:01:02.7]} 72... Ke6 {[%clk 0:00:16.3]} 73. Rg8 {[%clk
0:01:03.4]} 73... Kf7 {[%clk 0:00:16.8]} 74. Rxh8 {[%clk 0:01:03.8]} 74... Kg7
{[%clk 0:00:18.7]} 75. Rd8 {[%clk 0:01:03.8]} 75... Kf7 {[%clk 0:00:19.4]} 76.
g6+ {[%clk 0:01:04.4]} 76... Ke7 {[%clk 0:00:19.9]} 77. h8=Q {[%clk 0:01:02.8]}
77... Ke6 {[%clk 0:00:07.7]} 78. Qe8+ {[%clk 0:01:03.4]} 78... Kf6 {[%clk
0:00:08.1]} 79. Rd6+ {[%clk 0:01:04.2]} 1-0